bitfinex-derivatives/quotes_ETHF0:USTF0_20250926
["timestamp","ask_amount","ask_price","bid_price","bid_amount"]
[1758856257860,0.7723,3957.8,3957.7,0.259]
[1758856258056,0.7723,3957.8,3957.2,0.3306]
[1758856258368,0.4399,3957.3,3957.2,0.7748]
[1758856258666,0.4399,3957.3,3957.2,1.0338]
[1758856258865,0.7723,3957.3,3957.2,1.0338]
[1758856259364,0.89449,3957.3,3957.1,40.8]
[1758856259559,0.89449,3957.3,3956.9,0.259]
[1758856259560,0.45459,3957.3,3956.9,0.259]
[1758856259768,0.7723,3957.0,3956.9,0.819]
[1758856259962,0.7723,3957.0,3956.9,1.0338]
[1758856260162,0.2173,3957.0,3956.9,1.0338]
[1758856260360,0.8093,3957.9,3957.8,0.7648]
[1758856260764,0.8093,3957.9,3957.8,0.2156]
[1758856260964,0.8093,3957.9,3957.5,0.3973]
[1758856260965,0.468,3957.9,3957.5,0.3973]
[1758856261169,0.446,3957.8,3957.7,0.2156]
[1758856261364,0.7873,3957.8,3957.7,0.5502]
[1758856261669,0.47652,3957.9,3957.5,0.8092]
[1758856261670,0.7873,3957.6,3957.5,0.8092]
[1758856261859,0.7873,3957.6,3957.5,0.5502]
[1758856262265,0.7873,3957.6,3957.5,0.9031]
[1758856262466,0.2242,3957.6,3957.5,1.35766]
[1758856262669,0.2462,3957.9,3957.8,0.2156]
[1758856262867,0.2462,3957.9,3957.8,0.7648]
[1758856263065,0.1477,3958.5,3958.4,0.45445]
[1758856263066,0.2463,3958.5,3958.4,0.45445]
[1758856263267,0.0221,3958.5,3958.4,1.47825]
[1758856263465,0.2463,3958.5,3958.4,0.7648]
[1758856263671,0.0221,3958.5,3958.4,12.37650213]
[1758856264971,0.537,3959.6,3959.5,0.2158]
[1758856265272,0.7551,3959.6,3959.1,0.3298]
[1758856265473,0.7551,3959.6,3959.5,0.5456]
[1758856265662,0.7551,3959.6,3959.5,0.7668]
[1758856265865,0.7551,3959.6,3959.5,0.8943]
[1758856266972,0.2165,3959.4,3959.3,0.235]
[1758856267176,0.7551,3959.4,3959.3,0.7806]
[1758856267678,0.7551,3959.4,3959.3,1.0018]
[1758856268078,0.4346,3959.4,3959.3,1.0018]
[1758856268573,0.2165,3959.4,3959.3,1.45615]
[1758856268774,0.3205,3959.7,3959.6,0.2158]
[1758856269079,0.0164,3960.0,3959.7,0.3298]
[1758856269273,0.0164,3960.0,3959.9,0.437]
[1758856269274,0.451,3960.0,3959.9,0.437]
[1758856269575,0.451,3960.0,3959.9,0.7668]
[1758856269777,0.451,3960.0,3959.5,0.1275]
[1758856269778,0.4346,3959.7,3959.6,0.5456]
[1758856269970,0.7551,3959.7,3959.6,0.5456]
[1758856270165,1.2094,3959.7,3959.6,0.5456]
[1758856270874,1.2094,3959.7,3959.0,0.1275]
[1758856270875,0.45433,3959.6,3959.0,0.1275]
[1758856271081,0.7551,3959.1,3959.0,0.8235]
[1758856271274,0.4346,3959.1,3959.0,0.8235]
[1758856271474,0.4346,3959.1,3959.0,41.6235]
[1758856271668,0.2165,3959.1,3959.0,41.9533]
[1758856271872,0.3205,3959.4,3959.0,41.6235]
[1758856272074,0.7551,3959.4,3959.3,0.7668]
[1758856273085,0.7551,3959.4,3959.3,0.5456]
[1758856274387,1.28957419,3959.4,3959.3,0.5456]
[1758856274789,1.28957419,3959.4,3959.3,0.7668]
[1758856275184,1.28957419,3959.4,3959.3,0.2212]
[1758856275484,0.7551,3959.2,3959.1,0.437]
[1758856275686,1.28957419,3959.2,3959.1,0.437]
[1758856276179,1.74393419,3959.2,3959.1,0.437]
[1758856276490,1.28957419,3959.2,3959.1,0.437]
[1758856278389,1.28957419,3959.2,3959.1,0.7668]
[1758856279194,0.88897,3959.1,3959.0,0.259]
[1758856279390,1.74394419,3959.1,3959.0,0.4748]
[1758856281694,1.74394419,3959.1,3959.0,0.696]
[1758856282693,1.74394419,3959.1,3959.0,0.2158]
[1758856282995,0.4504,3959.0,3958.9,41.059]
[1758856283196,0.98487419,3959.0,3958.9,41.059]
[1758856283689,0.98487419,3959.0,3958.9,0.259]
[1758856283690,1.41947419,3959.0,3958.9,0.259]
[1758856283886,1.41947419,3959.0,3958.9,0.2158]
[1758856284591,0.53447419,3959.0,3958.9,2.45092355]
[1758856284800,0.53447419,3959.0,3958.9,7.45092355]
[1758856284999,0.55977,3960.0,3959.3,0.45434]
[1758856285190,0.6425,3960.0,3959.9,1.68412355]
[1758856285391,0.6425,3960.0,3959.9,1.94312355]
[1758856285891,0.426,3960.0,3959.9,1.94312355]
[1758856286695,1.09677,3960.0,3959.9,1.94312355]
[1758856286896,0.4504,3959.0,3958.9,0.45439]
[1758856287089,0.4504,3959.0,3958.9,1.94312355]
[1758856287689,1.33938,3959.0,3958.9,1.68412355]
[1758856287889,0.77492,3958.7,3958.6,42.48412355]
[1758856288086,0.77492,3958.7,3958.6,42.74312355]
[1758856288291,0.3205,3958.7,3958.6,42.74312355]
[1758856289395,0.1299,3959.0,3958.8,0.4544]
[1758856289594,0.4504,3959.0,3958.9,1.94212355]
[1758856289998,0.3464,3959.5,3959.0,0.45438]
[1758856290202,0.6867,3959.5,3959.4,1.68412355]
[1758856290495,0.6867,3959.5,3959.4,1.94212355]
[1758856291701,0.4702,3959.5,3959.4,1.94212355]
[1758856291899,0.1055,3960.0,3959.6,0.45431]
[1758856292093,0.4458,3960.0,3959.9,1.68412355]
[1758856292500,0.4458,3960.0,3959.9,40.8]
[1758856292501,0.6446,3960.0,3959.9,40.8]
[1758856294601,1.09887,3960.0,3959.9,41.058]
[1758856295005,0.6446,3960.0,3959.9,41.058]
[1758856297007,1.18168089,3960.0,3959.9,41.058]
[1758856299809,1.63595089,3960.0,3959.9,41.058]
[1758856300111,1.18168089,3960.0,3959.9,41.058]
[1758856301796,0.96648089,3960.0,3959.9,41.058]
[1758856302602,0.96614734,3960.0,3959.9,41.058]
[1758856303607,0.53674734,3960.0,3959.9,41.058]
[1758856304302,0.3403,3960.3,3959.9,41.058]
[1758856304507,0.53662791,3960.2,3960.0,0.45427]
[1758856304708,0.87692791,3960.1,3960.0,0.45427]
[1758856305010,0.87692791,3960.1,3960.0,0.71227]
[1758856306610,0.3403,3960.1,3960.0,0.71227]
[1758856306811,0.3403,3960.1,3959.9,40.8]
[1758856306812,0.47,3960.0,3959.9,40.8]
[1758856307011,0.47,3960.0,3959.9,41.058]
[1758856308912,0.3403,3960.3,3960.2,0.45425]
[1758856309209,0.87691783,3960.3,3960.2,0.71225]
[1758856309405,0.5555,3960.3,3960.2,0.71225]
[1758856309610,0.7746,3960.3,3960.2,0.258]
[1758856310809,1.30656167,3960.3,3960.2,0.258]
[1758856312708,0.47,3960.0,3959.9,41.25427]
[1758856312911,0.47,3960.0,3959.9,41.058]
[1758856313405,1.00229083,3960.0,3959.9,41.058]
[1758856313812,0.47,3960.0,3959.9,41.058]
[1758856314405,1.00251727,3960.0,3959.9,41.058]
[1758856318418,0.7746,3959.3,3959.2,0.45436]
[1758856318616,0.7746,3959.3,3959.2,0.71236]
[1758856318818,0.7746,3959.3,3959.2,41.51236]
[1758856319210,0.7746,3959.3,3959.2,40.8]
[1758856319414,0.4343,3959.3,3959.2,0.258]
[1758856320118,0.7746,3959.3,3959.2,0.258]
[1758856320319,1.30801117,3959.3,3959.2,0.258]
[1758856320814,1.30801117,3959.3,3958.4,41.25445]
[1758856320815,0.1304,3958.5,3958.4,41.25445]
[1758856321018,0.3315,3958.9,3958.4,43.07773162]
[1758856321212,0.53353359,3958.8,3958.7,2.01973162]
[1758856321521,0.3315,3958.8,3958.7,2.73215162]
[1758856321714,0.1304,3959.0,3958.9,0.4544]
[1758856321914,0.8969,3959.0,3958.9,0.258]
[1758856322118,1.43022489,3959.0,3958.9,0.258]
[1758856325320,6.30317825,3959.0,3958.2,2.01973162]
[1758856325519,1.21467,3958.3,3958.2,2.01973162]
[1758856325716,1.21467,3958.3,3958.2,2.27773162]
[1758856325912,1.74754737,3958.3,3958.2,2.27773162]
[1758856326318,0.7602,3958.3,3958.2,2.27773162]
[1758856327509,0.7602,3958.3,3958.2,2.01973162]
[1758856327710,0.45448,3958.2,3957.9,2.01973162]
[1758856327914,0.3312,3957.9,3957.6,2.47427162]
[1758856328214,0.1257,3958.0,3957.6,2.47427162]
[1758856328215,0.5462,3957.7,3957.6,2.47427162]
[1758856328620,0.7602,3957.7,3957.6,0.258]
[1758856328830,0.7602,3957.7,3957.6,43.07773162]
[1758856332223,0.3312,3957.9,3957.6,43.07773162]
[1758856332430,0.1257,3958.0,3957.9,0.45451]
[1758856332723,0.1257,3958.0,3957.9,2.73224162]
[1758856332920,0.4569,3958.0,3957.9,2.73224162]
[1758856333113,0.8859,3958.0,3957.6,40.8]
[1758856333318,0.6719,3958.0,3957.9,2.01973162]
[1758856333921,0.8859,3958.0,3957.9,2.01973162]
[1758856334521,0.8859,3958.0,3957.9,2.27773162]
[1758856334920,0.6719,3958.0,3957.9,2.27773162]
[1758856335120,0.4569,3958.0,3957.9,2.27773162]
[1758856335523,0.1257,3958.0,3957.9,2.27773162]
[1758856336627,0.0252,3958.2,3958.0,0.4545]
[1758856336823,0.3564,3958.2,3958.1,0.258]
[1758856337020,0.3564,3958.2,3958.1,2.27773162]
[1758856342522,0.3564,3958.2,3958.1,2.01973162]
[1758856342728,0.3564,3958.2,3958.1,2.27773162]
[1758856346332,0.7854,3958.2,3958.1,2.27773162]
[1758856347330,0.5714,3958.2,3958.1,2.27773162]
[1758856348544,0.3564,3958.2,3958.1,2.27773162]
[1758856349030,0.5714,3958.2,3958.1,2.27773162]
[1758856351638,0.5462,3958.2,3958.1,2.27773162]
[1758856352642,0.3321,3958.9,3958.8,0.4544]
[1758856352841,0.3321,3958.9,3958.8,2.73213162]
[1758856353037,0.86688351,3958.9,3958.8,2.73213162]
[1758856353238,0.86688351,3958.9,3958.8,43.53213162]
[1758856353935,0.3321,3959.4,3959.3,0.45435]
[1758856354136,0.1297,3959.5,3959.3,2.73208162]
[1758856354443,0.4618,3959.5,3959.3,2.73208162]
[1758856354943,0.3321,3959.8,3959.3,2.27773162]
[1758856355138,0.3321,3959.8,3959.7,2.01973162]
[1758856355339,0.3321,3959.8,3959.7,2.27773162]
[1758856355533,0.3321,3959.8,3959.7,2.73204162]
[1758856356136,0.3573,3959.9,3959.7,2.73204162]
[1758856356335,0.0252,3959.9,3959.7,2.73204162]
[1758856356537,0.4601,3960.5,3960.4,0.45423]
[1758856356739,0.4601,3960.5,3960.4,0.71223]
[1758856356937,0.4601,3960.5,3960.4,2.73196162]
[1758856357339,0.4601,3960.5,3960.4,2.47396162]
[1758856357539,0.128,3961.0,3960.7,0.45419]
[1758856357540,0.3321,3960.8,3960.7,0.45419]
[1758856357731,0.3321,3960.8,3960.7,2.73192162]
[1758856358136,0.3321,3960.8,3960.7,43.27392162]
[1758856358437,0.3321,3960.8,3960.7,43.53192162]
[1758856359337,0.4601,3961.0,3960.9,0.45417]
[1758856359531,0.4601,3961.0,3960.9,0.71217]
[1758856360135,0.6704,3961.5,3961.4,0.45411]
[1758856360336,0.6704,3961.5,3961.4,2.73184162]
[1758856360739,0.8802,3961.5,3961.4,2.73184162]
[1758856362039,0.4601,3961.5,3961.4,2.73184162]
[1758856362238,0.0134,3961.7,3961.4,2.73184162]
[1758856362239,0.3455,3961.7,3961.6,0.45409]
[1758856362435,0.3455,3961.7,3961.6,0.71209]
[1758856362633,0.3321,3961.7,3961.6,0.71209]
[1758856362846,0.3321,3961.7,3961.6,41.51209]
[1758856364242,0.128,3962.0,3961.9,0.45405]
[1758856364243,0.4601,3962.0,3961.9,0.45405]
[1758856364548,0.4601,3962.0,3961.9,2.73178162]
[1758856366645,0.2103,3961.7,3961.6,40.8]
[1758856366843,0.4601,3962.0,3961.9,0.45405]
[1758856367147,0.4601,3962.0,3961.9,2.73178162]
[1758856367842,0.128,3962.0,3961.9,2.73178162]
[1758856368050,0.3321,3962.3,3962.2,0.45402]
[1758856368243,0.3321,3962.3,3962.2,2.73175162]
[1758856368944,0.5424,3962.3,3962.2,2.47375162]
[1758856369150,0.5424,3962.3,3962.2,2.73175162]
[1758856370147,0.7522,3962.3,3962.2,2.73175162]
[1758856370447,0.7522,3962.3,3962.2,0.45402]
[1758856370747,0.7522,3962.3,3961.6,40.8]
[1758856370748,0.8802,3962.0,3961.9,0.45405]
[1758856371245,0.8802,3962.0,3961.9,0.258]
[1758856372748,0.8802,3962.0,3961.9,1.93935701]
[1758856373247,0.2103,3960.6,3960.5,1.13553]
[1758856373549,0.6704,3960.5,3960.4,0.45423]
[1758856373738,0.6704,3960.5,3960.4,41.51223]
[1758856374146,0.4601,3960.5,3960.4,41.51223]
[1758856374547,0.4601,3960.5,3960.4,43.19358701]
[1758856374942,0.4601,3960.5,3960.4,42.73935701]
[1758856375945,0.4601,3960.5,3960.4,41.058]
[1758856376144,0.4601,3960.5,3960.4,42.73935701]
[1758856378255,0.4601,3960.5,3960.4,40.8]
[1758856378550,0.5424,3959.9,3959.8,0.45429]
[1758856378749,0.5424,3959.9,3959.8,0.71229]
[1758856378953,0.3321,3959.9,3959.8,41.51229]
[1758856379653,0.128,3960.0,3959.8,44.87500402]
[1758856379852,0.3321,3960.3,3959.8,44.87500402]
[1758856379853,0.3321,3960.3,3960.2,0.45425]
[1758856380049,0.128,3960.5,3960.2,2.39359701]
[1758856380248,0.5297,3960.3,3960.2,1.68135701]
[1758856380455,0.5297,3960.3,3960.2,1.93935701]
[1758856380650,0.7416,3960.3,3960.2,1.93935701]
[1758856382055,0.5297,3960.3,3960.2,1.93935701]
[1758856382751,0.7416,3960.3,3960.2,1.93935701]
[1758856382958,1.19584,3960.3,3960.2,0.258]
[1758856383162,0.7416,3960.3,3960.2,0.258]
[1758856383353,0.7416,3960.3,3960.2,1.93935701]
[1758856383858,0.7416,3960.3,3960.2,2.39360701]
[1758856384051,0.3217,3960.3,3960.2,2.39360701]
[1758856384248,0.7386,3960.3,3960.2,1.93935701]
[1758856385264,0.5297,3960.3,3960.2,1.93935701]
[1758856385558,0.3217,3960.3,3960.2,1.93935701]
[1758856385761,0.5385,3960.3,3960.2,1.93935701]
[1758856385955,0.7474,3960.3,3960.2,1.93935701]
[1758856386851,0.3217,3960.3,3960.2,1.93935701]
[1758856387556,0.7474,3960.3,3960.2,1.93935701]
[1758856387853,0.3243,3960.2,3960.1,0.45426]
[1758856388060,0.75,3960.2,3960.1,0.258]
[1758856388457,0.3243,3960.1,3960.0,1.68135701]
[1758856388655,0.75,3960.1,3960.0,1.93935701]
[1758856390562,0.75,3960.1,3960.0,3.62071402]
[1758856391457,0.3243,3960.1,3960.0,3.62071402]
[1758856391665,0.128,3960.5,3959.8,40.8]
[1758856391666,0.1365,3960.0,3959.8,40.8]
[1758856391857,0.4257,3959.9,3959.8,40.8]
[1758856392057,0.2168,3959.9,3959.8,41.058]
[1758856392364,0.5411,3959.9,3959.8,41.058]
[1758856393058,0.5411,3959.9,3959.8,42.73935701]
[1758856396568,0.3243,3959.9,3959.8,42.73935701]
[1758856398567,0.4523,3960.5,3960.4,0.45423]
[1758856398774,0.4523,3960.5,3960.4,2.39358701]
[1758856398775,0.6691,3960.5,3960.4,2.39358701]
[1758856399160,0.878,3960.5,3960.4,2.39358701]
[1758856400469,0.878,3960.5,3960.4,1.93935701]
[1758856403269,1.4128142,3960.5,3960.4,1.93935701]
[1758856403655,1.2039142,3960.5,3960.4,1.93935701]
[1758856405466,0.9871142,3960.5,3960.4,1.93935701]
[1758856405672,0.3243,3960.8,3960.7,0.45419]
[1758856405970,0.85910985,3960.8,3960.7,2.39354701]
[1758856406272,0.3243,3960.8,3960.7,43.19354701]
[1758856407568,0.0252,3960.9,3960.7,43.19354701]
[1758856407772,0.128,3961.5,3960.7,43.19354701]
[1758856407773,0.4523,3961.5,3961.4,0.45411]
[1758856407966,0.4523,3961.5,3961.4,2.39346701]
[1758856408169,0.6691,3961.5,3961.4,2.39346701]
[1758856408369,0.4523,3961.5,3961.4,2.39346701]
[1758856408567,0.128,3961.5,3961.4,2.39346701]
[1758856408765,0.1365,3962.0,3961.4,1.93935701]
[1758856408766,0.3243,3961.9,3961.4,1.93935701]
[1758856409067,0.3243,3961.9,3961.8,1.68135701]
[1758856409273,0.3243,3961.9,3961.8,2.39342701]
[1758856409758,0.1365,3962.0,3961.8,2.39342701]
[1758856409959,0.3243,3962.2,3962.1,0.45403]
[1758856410165,0.3243,3962.2,3962.1,43.19338701]
[1758856410969,0.4684,3962.5,3962.4,0.454]
[1758856411164,0.4684,3962.5,3962.4,3.81671402]
[1758856411376,0.8989,3962.5,3962.4,2.39335701]
[1758856411762,0.4684,3962.5,3962.4,2.39335701]
[1758856412369,0.4684,3962.5,3962.4,4.07471402]
[1758856412772,0.3539,3962.9,3962.8,0.45395]
[1758856412966,0.3539,3962.9,3962.8,2.39330701]
[1758856413470,0.0201,3963.2,3963.1,0.5741]
[1758856413667,0.0201,3963.2,3963.1,2.51345701]
[1758856414074,0.0201,3963.2,3963.1,43.31345701]
[1758856414269,0.1365,3964.0,3963.4,0.5741]
[1758856414472,0.567,3964.0,3963.9,2.57258701]
[1758856414771,0.3482,3964.0,3963.9,2.96728701]
[1758856414966,0.133,3965.0,3963.9,2.51345701]
[1758856415279,0.3447,3964.5,3964.4,2.11875701]
[1758856415478,0.8954,3964.5,3964.4,2.37675701]
[1758856415876,0.3319,3964.4,3963.5,0.1367]
[1758856416176,0.7624,3964.4,3964.3,1.68135701]
[1758856416381,0.7624,3964.2,3964.1,1.68135701]
[1758856416671,0.7624,3964.2,3964.1,1.93935701]
[1758856418780,5.7624,3964.2,3964.1,0.258]
[1758856419480,0.7624,3964.2,3964.1,1.93935701]
[1758856420980,0.7624,3964.2,3964.1,1.68135701]
[1758856421375,1.2162,3964.2,3964.0,0.258]
[1758856421682,0.8954,3964.0,3963.9,0.258]
[1758856422075,0.5635,3964.0,3963.9,0.2187]
[1758856422785,0.8954,3964.0,3963.9,0.2187]
[1758856424387,0.8954,3964.0,3963.9,0.4767]
[1758856425377,0.8954,3964.0,3963.9,0.6954]
[1758856425891,0.8954,3964.0,3963.9,0.4767]
[1758856427074,0.8954,3964.0,3963.8,2.13518701]
[1758856427378,0.7624,3963.2,3963.1,41.25391]
[1758856427580,0.7624,3963.2,3963.1,41.058]
[1758856428379,0.5436,3963.2,3963.1,40.8]
[1758856428579,0.5436,3963.2,3963.1,41.058]
[1758856429585,0.3319,3963.2,3963.1,41.1947]
[1758856430185,0.3319,3963.2,3963.1,41.058]
[1758856431391,0.3319,3963.2,3963.1,40.8]
[1758856431591,0.3319,3963.2,3963.1,41.058]
[1758856434685,0.133,3963.5,3963.0,0.2187]
[1758856434686,0.4305,3963.1,3963.0,0.2187]
[1758856434890,0.2188,3962.4,3962.3,0.67271]
[1758856435095,0.4305,3962.4,3962.3,2.23520372]
[1758856435395,0.7624,3962.4,3962.3,2.49320372]
[1758856435593,0.7624,3962.4,3962.3,2.71190372]
[1758856436991,0.7624,3962.4,3962.3,2.27450372]
[1758856437300,0.7624,3962.4,3962.3,2.71190372]
[1758856437700,0.5436,3962.4,3962.3,2.71190372]
[1758856438692,0.6766,3963.0,3962.9,0.89134]
[1758856438992,1.20880644,3963.0,3962.9,3.30254372]
[1758856439193,1.20880644,3963.0,3962.9,3.16584372]
[1758856439893,0.53220644,3963.0,3962.9,3.30254372]
[1758856440801,0.3319,3963.3,3963.2,0.88381]
[1758856440997,0.5578,3963.3,3963.2,3.15831372]
[1758856441195,1.30385786,3963.3,3963.2,0.71191]
[1758856441409,1.30385786,3963.3,3963.2,0.92991]
[1758856441701,1.30385786,3963.3,3963.2,3.15831372]
[1758856443003,1.30385786,3963.3,3963.2,1.14181]
[1758856443399,1.30385786,3963.3,3963.2,0.92991]
[1758856443700,0.8944,3963.0,3962.9,2.01650372]
[1758856443901,0.8944,3963.0,3962.9,2.70440372]
[1758856444092,0.133,3963.5,3963.3,0.45389]
[1758856444404,1.07089103,3963.4,3963.3,0.88889]
[1758856444605,1.07089103,3963.4,3963.3,0.435]
[1758856444606,1.29269103,3963.4,3963.3,0.435]
[1758856444904,1.29269103,3963.4,3963.3,0.693]
[1758856445291,1.29269103,3963.4,3963.3,0.4763]
[1758856446605,1.29269103,3963.4,3963.3,0.258]
[1758856447406,1.29269103,3963.4,3963.3,0.9302]
[1758856447601,1.29269103,3963.4,3963.3,0.4763]
[1758856447806,1.29269103,3963.4,3963.3,0.258]
[1758856448494,0.97659103,3963.4,3963.0,40.8]
[1758856448698,0.7602,3963.1,3963.0,40.8]
[1758856448916,0.84859103,3963.1,3963.0,43.21090372]
[1758856449800,0.5457,3963.8,3963.7,0.435]
[1758856450103,0.5384,3963.2,3963.1,2.90541372]
[1758856450304,0.7602,3963.2,3963.1,2.90541372]
[1758856450504,0.7602,3963.2,3963.1,3.16341372]
[1758856452103,0.1322,3963.5,3963.4,0.45388]
[1758856452404,0.1322,3963.5,3963.4,3.16338372]
[1758856452405,0.6706,3963.5,3963.4,3.16338372]
[1758856452705,1.42555431,3963.5,3963.4,2.70950372]
[1758856454500,1.42555431,3963.5,3963.4,0.258]
[1758856454696,1.42555431,3963.5,3962.7,0.88896]
[1758856454697,0.7602,3962.8,3962.7,0.88896]
[1758856454901,0.7602,3962.8,3962.7,0.258]
[1758856454902,1.29370248,3962.8,3962.7,0.258]
[1758856455299,1.29370248,3962.8,3962.7,0.4763]
[1758856455506,1.29370248,3962.8,3962.7,2.49280372]
[1758856456308,1.29370248,3962.8,3962.7,2.27450372]
[1758856456610,1.29370248,3962.8,3962.7,2.70950372]
[1758856457508,1.07190248,3962.8,3962.7,2.70950372]
[1758856457814,1.29370248,3962.8,3962.7,2.70950372]
[1758856458005,1.29370248,3962.8,3962.7,2.45150372]
[1758856458406,1.29370248,3962.8,3962.7,2.49180372]
[1758856458912,1.29370248,3962.8,3962.7,0.257]
[1758856459311,1.29370248,3962.8,3962.7,0.4753]
[1758856459514,1.29370248,3962.8,3962.7,0.692]
[1758856459714,1.29370248,3962.8,3962.7,0.4753]
[1758856459908,1.29370248,3962.8,3962.7,0.257]
[1758856460102,1.29370248,3962.8,3962.7,0.4753]
[1758856460307,1.29370248,3962.8,3962.7,0.257]
[1758856460716,1.29370248,3962.8,3962.7,0.4753]
[1758856460916,1.29370248,3962.8,3962.7,0.692]
[1758856461917,1.29370248,3962.8,3962.7,0.4753]
[1758856462218,1.29370248,3962.8,3962.7,0.257]
[1758856463017,0.7602,3962.4,3962.3,40.8]
[1758856463220,0.7602,3961.9,3961.8,0.2183]
[1758856463411,0.7602,3961.9,3961.8,0.257]
[1758856463612,0.7602,3961.9,3961.8,41.057]
[1758856463808,0.45407,3961.8,3961.3,2.47062372]
[1758856464115,0.7602,3961.4,3961.3,2.23480372]
[1758856464317,0.7602,3961.4,3961.3,43.50850372]
[1758856465111,0.45407,3961.8,3961.3,43.50850372]
[1758856465112,0.4483,3962.0,3961.9,0.88906]
[1758856465312,0.45398,3962.6,3962.1,0.45403]
[1758856465517,0.5384,3962.2,3962.1,0.88903]
[1758856465718,1.07137218,3962.2,3962.1,1.14603]
[1758856466219,0.45396,3962.8,3962.4,1.0254]
[1758856466416,0.5763,3962.5,3962.4,0.4753]
[1758856466615,1.42532506,3962.5,3962.4,0.257]
[1758856467010,1.42532506,3962.5,3962.4,0.692]
[1758856468426,1.42532506,3962.5,3962.4,0.4753]
[1758856468620,1.42532506,3962.5,3962.4,0.692]
[1758856468925,1.20352506,3962.5,3962.4,0.692]
[1758856469222,1.42532506,3962.5,3962.4,0.692]
[1758856469420,0.4483,3962.5,3962.4,0.692]
[1758856469630,0.3161,3962.5,3962.4,0.8284]
[1758856469925,0.5384,3962.8,3962.7,0.88896]
[1758856470114,1.07124101,3962.8,3962.7,3.16246372]
[1758856470428,0.3161,3962.8,3962.7,3.29916372]
[1758856470628,0.3161,3962.8,3962.7,44.09916372]
[1758856470918,0.3161,3962.8,3962.7,43.96246372]
[1758856471124,0.3161,3962.8,3962.7,44.09916372]
[1758856471924,0.3161,3962.8,3962.7,43.70546372]
[1758856472125,0.3161,3962.8,3962.7,43.96246372]
[1758856472628,0.3161,3962.8,3962.7,43.29180372]
[1758856474025,0.3161,3962.8,3962.7,43.03480372]
[1758856474425,0.3161,3962.8,3962.7,43.29180372]
[1758856474927,0.4278,3962.5,3962.4,2.01650372]
[1758856475125,0.5547,3962.5,3962.4,2.23530372]
[1758856475323,0.8873,3962.5,3962.4,2.23530372]
[1758856476529,0.4595,3962.5,3962.4,2.59080372]
[1758856476733,0.3326,3962.7,3962.6,0.5743]
[1758856477031,1.07724975,3962.7,3962.6,2.71110372]
[1758856477224,1.29334975,3962.7,3962.6,2.71110372]
[1758856477531,1.07724975,3962.7,3962.6,2.71110372]
[1758856479130,1.29334975,3962.7,3962.6,2.71110372]
[1758856479330,1.29334975,3962.7,3962.6,2.49230372]
[1758856479633,1.29334975,3962.7,3962.6,2.27350372]
[1758856479930,0.4278,3962.4,3962.0,2.47054372]
[1758856480135,0.7604,3962.1,3962.0,2.23530372]
[1758856480434,0.7604,3962.1,3962.0,2.49230372]
[1758856482331,1.29364675,3962.1,3962.0,2.49230372]
[1758856485633,1.29364675,3962.1,3962.0,2.71110372]
[1758856485828,1.07754675,3962.1,3962.0,2.84780372]
[1758856486841,0.53324675,3962.1,3962.0,2.84780372]
[1758856487040,0.3326,3962.4,3962.3,0.4376]
[1758856487336,1.077597,3962.4,3962.3,2.71110372]
[1758856487638,1.077597,3962.4,3962.3,3.16511372]
[1758856487837,1.077597,3962.4,3962.3,2.71110372]
[1758856488439,1.077597,3962.4,3962.3,2.84780372]
[1758856488640,0.865897,3962.4,3962.3,2.84780372]
[1758856488842,0.3326,3962.4,3962.3,2.84780372]
[1758856489236,0.3326,3962.7,3962.6,0.5743]
[1758856489539,1.74769887,3962.7,3962.6,0.6946]
[1758856490037,0.7604,3962.4,3962.3,0.2188]
[1758856490244,1.29372887,3962.4,3962.3,0.4758]
[1758856490443,1.29372887,3962.4,3962.3,0.2188]
[1758856490644,0.7604,3962.2,3962.1,2.01650372]
[1758856490846,1.29372887,3962.2,3962.1,2.27350372]
[1758856491340,0.99838,3961.7,3961.6,0.4376]
[1758856491536,0.99838,3961.7,3961.6,2.71110372]
[1758856491537,1.21448,3961.7,3961.6,2.71110372]
[1758856491940,1.21448,3961.7,3961.6,43.51110372]
[1758856492338,0.1269,3962.0,3961.6,43.51110372]
[1758856492339,0.0252,3961.9,3961.7,0.1367]
[1758856492544,0.0252,3961.9,3961.8,0.8313]
[1758856492841,0.2369,3961.9,3961.8,0.8313]
[1758856493043,0.5695,3961.9,3961.8,0.6946]
[1758856493343,0.7856,3961.9,3961.8,0.6946]
[1758856494047,0.7856,3961.9,3961.8,1.28537]
[1758856494048,0.3578,3961.9,3961.8,1.28537]
[1758856494346,0.0252,3961.9,3961.8,1.28537]
[1758856494550,0.0252,3961.9,3961.8,2.96658753]
[1758856495045,0.0252,3961.9,3961.8,2.51251753]
[1758856495046,0.3578,3961.9,3961.8,2.51251753]
[1758856495252,0.7856,3961.9,3961.8,2.11881753]
[1758856495545,0.7856,3961.9,3961.6,40.8]
[1758856495546,0.7604,3961.7,3961.6,2.15701753]
[1758856495745,1.29431422,3961.7,3961.6,2.37581753]
[1758856496650,0.86651422,3961.7,3961.6,2.51251753]
[1758856496946,0.0252,3961.9,3961.6,2.51251753]
[1758856496947,0.0252,3961.9,3961.7,0.59078]
[1758856497145,0.0252,3961.9,3961.8,0.8313]
[1758856497343,0.3578,3961.9,3961.8,0.8313]
[1758856497536,0.89162521,3961.9,3961.8,0.8313]
[1758856497743,1.10332521,3961.9,3961.8,2.37581753]
[1758856497943,1.31942521,3961.9,3961.8,2.37581753]
[1758856499044,1.31942521,3961.9,3961.8,1.93821753]
[1758856499251,1.29422521,3961.9,3961.8,1.93821753]
[1758856499949,1.29422521,3961.9,3961.8,2.37581753]
[1758856500148,0.86642521,3961.9,3961.8,2.37581753]
[1758856500350,0.53382521,3961.9,3961.8,2.51261753]
[1758856500544,0.3117,3962.3,3962.1,0.4311]
[1758856500739,1.28332633,3962.2,3962.1,2.11231753]
[1758856500946,1.28332633,3962.2,3962.1,2.15711753]
[1758856501753,1.28332633,3962.2,3962.1,2.36931753]